[Event "Titled Tuesday Blitz February 15 Late 2022"]
[White "Galchenko, Matvey"]
[Black "Musovic, Armin"]
[WhiteFideId "24175480"]
[BlackFideId "939935"]
[WhiteElo "2453"]
[BlackElo "2250"]
[Result "0-1"]
[Round "05"]
[TimeControl "180+1"]
[Date "2022.02.16"]
[WhiteClock "0:00:05"]
[BlackClock "0:00:07"]

1. f4 {[%clk 0:03:00]}  Nh6 {[%clk 0:02:55]} 2. Nf3 {[%clk 0:02:59]}  g6 {[%clk 0:02:56]} 3. g3 {[%clk 0:02:59]}  Bg7 {[%clk 0:02:57]} 4. Bg2 {[%clk 0:03:00]}  O-O {[%clk 0:02:58]} 5. O-O {[%clk 0:03:01]}  d5 {[%clk 0:02:59]} 6. d3 {[%clk 0:03:01]}  d4 {[%clk 0:02:59]} 7. c3 {[%clk 0:03:01]}  Nc6 {[%clk 0:02:59]} 8. e4 {[%clk 0:03:02]}  dxe3 {[%clk 0:02:59]} 9. Bxe3 {[%clk 0:03:03]}  Ng4 {[%clk 0:02:59]} 10. Bc1 {[%clk 0:03:02]}  h5 {[%clk 0:02:49]} 11. Qe2 {[%clk 0:02:41]}  Re8 {[%clk 0:02:43]} 12. d4 {[%clk 0:02:30]}  Bf5 {[%clk 0:02:23]} 13. Nbd2 {[%clk 0:02:25]}  e5 {[%clk 0:02:08]} 14. fxe5 {[%clk 0:02:00]}  Ncxe5 {[%clk 0:01:55]} 15. dxe5 {[%clk 0:01:52]}  Bd3 {[%clk 0:01:52]} 16. Qe1 {[%clk 0:01:47]}  Nxe5 {[%clk 0:01:46]} 17. Nxe5 {[%clk 0:01:38]}  Rxe5 {[%clk 0:01:47]} 18. Qf2 {[%clk 0:01:36]}  Rf5 {[%clk 0:01:38]} 19. Qe3 {[%clk 0:01:36]}  Bxf1 {[%clk 0:01:37]} 20. Nxf1 {[%clk 0:01:36]}  Qd1 {[%clk 0:01:30]} 21. Bh3 {[%clk 0:01:16]}  Rf3 {[%clk 0:01:15]} 22. Qe4 {[%clk 0:01:02]}  Bf8 {[%clk 0:00:41]} 23. b4 {[%clk 0:00:50]}  Qd3 {[%clk 0:00:27]} 24. Qxd3 {[%clk 0:00:44]}  Rxd3 {[%clk 0:00:28]} 25. Bb2 {[%clk 0:00:43]}  Bg7 {[%clk 0:00:26]} 26. Rc1 {[%clk 0:00:40]}  Re8 {[%clk 0:00:21]} 27. Kf2 {[%clk 0:00:34]}  Bh6 {[%clk 0:00:13]} 28. Rc2 {[%clk 0:00:32]}  Rd1 {[%clk 0:00:14]} 29. c4 {[%clk 0:00:31]}  b6 {[%clk 0:00:11]} 30. Bc3 {[%clk 0:00:23]}  Bf8 {[%clk 0:00:10]} 31. a3 {[%clk 0:00:22]}  Red8 {[%clk 0:00:09]} 32. Bg2 {[%clk 0:00:22]}  R1d6 {[%clk 0:00:09]} 33. Bd5 {[%clk 0:00:19]}  c6 {[%clk 0:00:08]} 34. Bf3 {[%clk 0:00:19]}  c5 {[%clk 0:00:08]} 35. b5 {[%clk 0:00:18]}  Rd3 {[%clk 0:00:08]} 36. Bd5 {[%clk 0:00:16]}  Re8 {[%clk 0:00:08]} 37. a4 {[%clk 0:00:15]}  Bg7 {[%clk 0:00:08]} 38. Bxg7 {[%clk 0:00:13]}  Kxg7 {[%clk 0:00:09]} 39. Ra2 {[%clk 0:00:14]}  Rc3 {[%clk 0:00:07]} 40. Kg2 {[%clk 0:00:13]}  Re1 {[%clk 0:00:06]} 41. Rf2 {[%clk 0:00:06]}  f5 {[%clk 0:00:05]} 42. Nd2 {[%clk 0:00:07]}  Ra1 {[%clk 0:00:05]} 43. Re2 {[%clk 0:00:05]}  Rc2 {[%clk 0:00:04]} 44. Kh3 {[%clk 0:00:04]}  Raa2 {[%clk 0:00:04]} 45. Re7+ {[%clk 0:00:04]}  Kf8 {[%clk 0:00:03]} 46. Rf7+ {[%clk 0:00:03]}  Ke8 {[%clk 0:00:03]} 47. Nf3 {[%clk 0:00:04]}  g5 {[%clk 0:00:03]} 48. Rxf5 {[%clk 0:00:01]}  g4+ {[%clk 0:00:03]} 49. Kh4 {[%clk 0:00:02]}  gxf3 {[%clk 0:00:03]} 50. Rxf3 {[%clk 0:00:03]}  Rxh2+ {[%clk 0:00:03]} 51. Kg5 {[%clk 0:00:04]}  Rhf2 {[%clk 0:00:04]} 52. Re3+ {[%clk 0:00:04]}  Kd8 {[%clk 0:00:04]} 53. Re6 {[%clk 0:00:05]}  Rae2 {[%clk 0:00:05]} 54. Rd6+ {[%clk 0:00:05]}  Kc7 {[%clk 0:00:05]} 55. Rc6+ {[%clk 0:00:06]}  Kd7 {[%clk 0:00:06]} 56. Kxh5 {[%clk 0:00:07]}  Re5+ {[%clk 0:00:06]} 57. Kg4 {[%clk 0:00:07]}  Rf8 {[%clk 0:00:05]} 58. Rh6 {[%clk 0:00:07]}  Re7 {[%clk 0:00:05]} 59. Kg5 {[%clk 0:00:06]}  Rg7+ {[%clk 0:00:05]} 60. Kh4 {[%clk 0:00:07]}  Kc7 {[%clk 0:00:04]} 61. g4 {[%clk 0:00:06]}  Rf1 {[%clk 0:00:04]} 62. Rf6 {[%clk 0:00:03]}  Rxf6 {[%clk 0:00:04]} 63. g5 {[%clk 0:00:04]}  Rfg6 {[%clk 0:00:04]} 64. Kh5 {[%clk 0:00:05]}  Rxg5+ {[%clk 0:00:05]} 65. Kh6 {[%clk 0:00:05]}  Rxd5 {[%clk 0:00:06]} 66. Kxg7 {[%clk 0:00:05]}  Rd4 {[%clk 0:00:07]} 0-1


[Site "https://www.chess.com"]

[Event "Titled Tuesday Blitz February 15 Late 2022"]
[White "Gledura, Benjamin"]
[Black "Van Foreest, Jorden"]
[WhiteFideId "712779"]
[BlackFideId "1039784"]
[WhiteElo "2326"]
[BlackElo "2609"]
[Result "0-1"]
[Round "05"]
[TimeControl "180+1"]
[Date "2022.02.15"]
[WhiteClock "0:00:08"]
[BlackClock "0:00:29"]

1. Nf3 {[%clk 0:03:00]}  b6 {[%clk 0:02:58]} 2. e4 {[%clk 0:02:59]}  Bb7 {[%clk 0:02:57]} 3. Nc3 {[%clk 0:02:59]}  c5 {[%clk 0:02:58]} 4. d4 {[%clk 0:02:57]}  cxd4 {[%clk 0:02:58]} 5. Nxd4 {[%clk 0:02:58]}  e6 {[%clk 0:02:57]} 6. a3 {[%clk 0:02:35]}  a6 {[%clk 0:02:55]} 7. Bd3 {[%clk 0:02:34]}  Nc6 {[%clk 0:02:55]} 8. Nxc6 {[%clk 0:02:33]}  Bxc6 {[%clk 0:02:55]} 9. O-O {[%clk 0:02:32]}  Nf6 {[%clk 0:02:53]} 10. Bg5 {[%clk 0:02:31]}  Be7 {[%clk 0:02:53]} 11. Qd2 {[%clk 0:02:21]}  Qc7 {[%clk 0:02:43]} 12. Rae1 {[%clk 0:02:18]}  Ng4 {[%clk 0:02:24]} 13. Bf4 {[%clk 0:02:17]}  d6 {[%clk 0:02:23]} 14. Bg3 {[%clk 0:02:11]}  O-O {[%clk 0:02:20]} 15. f4 {[%clk 0:02:08]}  b5 {[%clk 0:02:14]} 16. h3 {[%clk 0:02:06]}  Nf6 {[%clk 0:02:14]} 17. e5 {[%clk 0:02:02]}  Nh5 {[%clk 0:02:04]} 18. Bf2 {[%clk 0:02:01]}  dxe5 {[%clk 0:01:51]} 19. fxe5 {[%clk 0:02:01]}  g6 {[%clk 0:01:32]} 20. g4 {[%clk 0:01:23]}  Ng7 {[%clk 0:01:29]} 21. Qf4 {[%clk 0:01:07]}  f5 {[%clk 0:01:27]} 22. Ne2 {[%clk 0:00:53]}  Rad8 {[%clk 0:01:10]} 23. Nd4 {[%clk 0:00:52]}  Ba8 {[%clk 0:01:10]} 24. gxf5 {[%clk 0:00:50]}  exf5 {[%clk 0:00:57]} 25. Kh2 {[%clk 0:00:50]}  Bc5 {[%clk 0:00:52]} 26. c3 {[%clk 0:00:46]}  Rfe8 {[%clk 0:00:47]} 27. Rg1 {[%clk 0:00:44]}  Kh8 {[%clk 0:00:44]} 28. Bh4 {[%clk 0:00:39]}  Nh5 {[%clk 0:00:43]} 29. Qg5 {[%clk 0:00:36]}  Rxd4 {[%clk 0:00:31]} 30. cxd4 {[%clk 0:00:34]}  Bxd4 {[%clk 0:00:32]} 31. Qxh5 {[%clk 0:00:11]}  Bxg1+ {[%clk 0:00:30]} 32. Rxg1 {[%clk 0:00:07]}  Qxe5+ {[%clk 0:00:30]} 33. Bg3 {[%clk 0:00:08]}  Qxb2+ {[%clk 0:00:29]} 0-1


[Site "https://www.chess.com"]

[Event "Titled Tuesday Blitz February 15 Late 2022"]
[White "Goltseva, Ekaterina"]
[Black "Bluebaum, Matthias"]
[WhiteFideId "24173770"]
[BlackFideId "24651516"]
[WhiteElo "2140"]
[BlackElo "2550"]
[Result "0-1"]
[Round "05"]
[TimeControl "180+1"]
[Date "2022.02.15"]
[WhiteClock "0:00:55"]
[BlackClock "0:01:08"]

1. d4 {[%clk 0:03:00]}  d5 {[%clk 0:02:58]} 2. c4 {[%clk 0:03:00]}  e6 {[%clk 0:02:57]} 3. Nc3 {[%clk 0:03:00]}  Nf6 {[%clk 0:02:56]} 4. Nf3 {[%clk 0:03:01]}  Bb4 {[%clk 0:02:54]} 5. g3 {[%clk 0:03:01]}  dxc4 {[%clk 0:02:53]} 6. Bg2 {[%clk 0:03:01]}  Bd7 {[%clk 0:02:54]} 7. Ne5 {[%clk 0:02:59]}  Bc6 {[%clk 0:02:54]} 8. Nxc6 {[%clk 0:02:58]}  Nxc6 {[%clk 0:02:55]} 9. Bxc6+ {[%clk 0:02:54]}  bxc6 {[%clk 0:02:55]} 10. O-O {[%clk 0:02:55]}  O-O {[%clk 0:02:54]} 11. Qa4 {[%clk 0:02:52]}  Rb8 {[%clk 0:02:44]} 12. Qxc6 {[%clk 0:02:47]}  Qxd4 {[%clk 0:02:39]} 13. Be3 {[%clk 0:02:46]}  Qg4 {[%clk 0:02:36]} 14. Bxa7 {[%clk 0:02:44]}  Ra8 {[%clk 0:02:05]} 15. f3 {[%clk 0:02:43]}  Qg6 {[%clk 0:02:00]} 16. Bd4 {[%clk 0:02:35]}  Bxc3 {[%clk 0:01:56]} 17. bxc3 {[%clk 0:02:29]}  h5 {[%clk 0:01:28]} 18. Qxc4 {[%clk 0:02:18]}  h4 {[%clk 0:01:28]} 19. Bf2 {[%clk 0:02:11]}  hxg3 {[%clk 0:01:27]} 20. hxg3 {[%clk 0:02:10]}  Nd5 {[%clk 0:01:20]} 21. e4 {[%clk 0:01:59]}  Ne3 {[%clk 0:01:20]} 22. Bxe3 {[%clk 0:01:32]}  Qxg3+ {[%clk 0:01:19]} 23. Kh1 {[%clk 0:01:32]}  Qh3+ {[%clk 0:01:20]} 24. Kg1 {[%clk 0:01:32]}  Qg3+ {[%clk 0:01:21]} 25. Kh1 {[%clk 0:01:33]}  Ra5 {[%clk 0:01:21]} 26. Bc5 {[%clk 0:01:26]}  Qh4+ {[%clk 0:01:21]} 27. Kg2 {[%clk 0:01:25]}  Qg5+ {[%clk 0:01:22]} 28. Kf2 {[%clk 0:01:21]}  Rxc5 {[%clk 0:01:22]} 29. Qd4 {[%clk 0:01:17]}  Rd8 {[%clk 0:01:14]} 30. Rg1 {[%clk 0:00:53]}  Qh4+ {[%clk 0:01:12]} 31. Ke3 {[%clk 0:00:54]}  Rxd4 {[%clk 0:01:12]} 32. cxd4 {[%clk 0:00:55]}  Rc3+ {[%clk 0:01:09]} 33. Kd2 {[%clk 0:00:54]}  Rxf3 {[%clk 0:01:09]} 34. Rae1 {[%clk 0:00:52]}  Qf2+ {[%clk 0:01:09]} 35. Re2 {[%clk 0:00:53]}  Qxd4+ {[%clk 0:01:09]} 36. Ke1 {[%clk 0:00:53]}  Qxg1+ {[%clk 0:01:08]} 37. Kd2 {[%clk 0:00:54]}  Qd4+ {[%clk 0:01:09]} 38. Ke1 {[%clk 0:00:54]}  Rd3 {[%clk 0:01:09]} 39. Rd2 {[%clk 0:00:54]}  Qe3+ {[%clk 0:01:08]} 40. Kf1 {[%clk 0:00:54]}  Rxd2 {[%clk 0:01:08]} 41. e5 {[%clk 0:00:55]}  c5 {[%clk 0:01:08]} 0-1


[Site "https://www.chess.com"]

[Event "Titled Tuesday Blitz February 15 Late 2022"]
[White "Grigoriants, Sergey"]
[Black "Fedoseev, Vladimir"]
[WhiteFideId "4130804"]
[BlackFideId "24130737"]
[WhiteElo "2502"]
[BlackElo "2726"]
[Result "1/2-1/2"]
[Round "05"]
[TimeControl "180+1"]
[Date "2022.02.15"]
[WhiteClock "0:00:08"]
[BlackClock "0:00:13"]

1. e4 {[%clk 0:02:44]}  e5 {[%clk 0:02:59]} 2. Nf3 {[%clk 0:02:43]}  Nc6 {[%clk 0:03:00]} 3. Bb5 {[%clk 0:02:43]}  a6 {[%clk 0:03:01]} 4. Ba4 {[%clk 0:02:43]}  d6 {[%clk 0:03:01]} 5. O-O {[%clk 0:02:42]}  Bd7 {[%clk 0:03:01]} 6. c3 {[%clk 0:02:35]}  g6 {[%clk 0:02:57]} 7. d4 {[%clk 0:02:35]}  Bg7 {[%clk 0:02:57]} 8. Re1 {[%clk 0:02:33]}  Nge7 {[%clk 0:02:48]} 9. Be3 {[%clk 0:02:12]}  O-O {[%clk 0:02:47]} 10. Nbd2 {[%clk 0:02:12]}  b5 {[%clk 0:02:24]} 11. Bb3 {[%clk 0:02:09]}  exd4 {[%clk 0:02:01]} 12. cxd4 {[%clk 0:02:07]}  Na5 {[%clk 0:01:58]} 13. Bc2 {[%clk 0:01:55]}  c5 {[%clk 0:01:57]} 14. dxc5 {[%clk 0:01:52]}  dxc5 {[%clk 0:01:57]} 15. Bxc5 {[%clk 0:01:52]}  Rc8 {[%clk 0:01:50]} 16. Bd4 {[%clk 0:01:43]}  Nec6 {[%clk 0:01:44]} 17. Bxg7 {[%clk 0:01:43]}  Kxg7 {[%clk 0:01:45]} 18. e5 {[%clk 0:01:25]}  Bg4 {[%clk 0:01:44]} 19. h3 {[%clk 0:01:08]}  Bxf3 {[%clk 0:01:22]} 20. Nxf3 {[%clk 0:01:09]}  Qxd1 {[%clk 0:01:20]} 21. Bxd1 {[%clk 0:00:40]}  Nc4 {[%clk 0:01:18]} 22. b3 {[%clk 0:00:35]}  Na3 {[%clk 0:01:18]} 23. Rc1 {[%clk 0:00:18]}  Nb4 {[%clk 0:01:17]} 24. Rxc8 {[%clk 0:00:10]}  Rxc8 {[%clk 0:01:18]} 25. e6 {[%clk 0:00:09]}  fxe6 {[%clk 0:01:16]} 26. Nd4 {[%clk 0:00:09]}  Rc1 {[%clk 0:01:10]} 27. Nxe6+ {[%clk 0:00:05]}  Kf6 {[%clk 0:01:10]} 28. Nf4 {[%clk 0:00:06]}  Nxa2 {[%clk 0:01:03]} 29. Kf1 {[%clk 0:00:06]}  Nc3 {[%clk 0:01:00]} 30. Bf3 {[%clk 0:00:06]}  Rxe1+ {[%clk 0:00:59]} 31. Kxe1 {[%clk 0:00:07]}  Ke5 {[%clk 0:00:58]} 32. Nd3+ {[%clk 0:00:07]}  Kd6 {[%clk 0:00:55]} 33. Nb4 {[%clk 0:00:08]}  a5 {[%clk 0:00:54]} 34. Nc6 {[%clk 0:00:08]}  a4 {[%clk 0:00:52]} 35. bxa4 {[%clk 0:00:08]}  bxa4 {[%clk 0:00:52]} 36. Kd2 {[%clk 0:00:09]}  Ncb5 {[%clk 0:00:49]} 37. Nb4 {[%clk 0:00:09]}  Nc4+ {[%clk 0:00:49]} 38. Kc2 {[%clk 0:00:08]}  Kc5 {[%clk 0:00:45]} 39. Na6+ {[%clk 0:00:05]}  Kb6 {[%clk 0:00:40]} 40. Nb4 {[%clk 0:00:06]}  Ne5 {[%clk 0:00:30]} 41. Bd1 {[%clk 0:00:04]}  Kc5 {[%clk 0:00:19]} 42. Nd3+ {[%clk 0:00:04]}  Nxd3 {[%clk 0:00:18]} 43. Kxd3 {[%clk 0:00:05]}  Kb4 {[%clk 0:00:19]} 44. Bxa4 {[%clk 0:00:04]}  Kxa4 {[%clk 0:00:18]} 45. Kc4 {[%clk 0:00:05]}  Nc7 {[%clk 0:00:18]} 46. Kc5 {[%clk 0:00:05]}  Ne6+ {[%clk 0:00:18]} 47. Kd6 {[%clk 0:00:05]}  Nf4 {[%clk 0:00:18]} 48. Ke5 {[%clk 0:00:04]}  Nxg2 {[%clk 0:00:18]} 49. Kf6 {[%clk 0:00:05]}  Nf4 {[%clk 0:00:18]} 50. h4 {[%clk 0:00:05]}  Kb4 {[%clk 0:00:17]} 51. Kg7 {[%clk 0:00:04]}  h5 {[%clk 0:00:16]} 52. Kh6 {[%clk 0:00:04]}  Kc4 {[%clk 0:00:15]} 53. Kg5 {[%clk 0:00:04]}  Ng2 {[%clk 0:00:11]} 54. Kxg6 {[%clk 0:00:04]}  Nxh4+ {[%clk 0:00:11]} 55. Kxh5 {[%clk 0:00:05]}  Nf3 {[%clk 0:00:12]} 56. Kg4 {[%clk 0:00:06]}  Nd4 {[%clk 0:00:12]} 57. f4 {[%clk 0:00:07]}  Kd5 {[%clk 0:00:13]} 58. f5 {[%clk 0:00:08]}  Ke5 {[%clk 0:00:13]} 59. f6 {[%clk 0:00:08]}  Kxf6 {[%clk 0:00:13]} 1/2-1/2


[Site "https://www.chess.com"]

[Event "Titled Tuesday Blitz February 15 Late 2022"]
[White "Grigorov, Grigor"]
[Black "Paravyan, David"]
[WhiteFideId "2907313"]
[BlackFideId "4194985"]
[WhiteElo "2510"]
[BlackElo "2569"]
[Result "0-1"]
[Round "05"]
[TimeControl "180+1"]
[Date "2022.02.15"]
[WhiteClock "0:00:07"]
[BlackClock "0:00:41"]

1. d4 {[%clk 0:03:00]}  Nf6 {[%clk 0:02:58]} 2. Nf3 {[%clk 0:03:01]}  g6 {[%clk 0:02:58]} 3. Bg5 {[%clk 0:03:01]}  Bg7 {[%clk 0:02:58]} 4. Nbd2 {[%clk 0:02:58]}  h6 {[%clk 0:02:59]} 5. Bh4 {[%clk 0:02:58]}  c5 {[%clk 0:02:59]} 6. Bxf6 {[%clk 0:02:53]}  Bxf6 {[%clk 0:03:00]} 7. Ne4 {[%clk 0:02:53]}  Qb6 {[%clk 0:02:52]} 8. Nxf6+ {[%clk 0:02:34]}  exf6 {[%clk 0:02:53]} 9. b3 {[%clk 0:02:28]}  d5 {[%clk 0:02:51]} 10. dxc5 {[%clk 0:02:26]}  Qxc5 {[%clk 0:02:52]} 11. e3 {[%clk 0:02:26]}  Qc3+ {[%clk 0:02:51]} 12. Nd2 {[%clk 0:02:26]}  Nc6 {[%clk 0:02:49]} 13. Bb5 {[%clk 0:02:17]}  Bg4 {[%clk 0:02:48]} 14. Bxc6+ {[%clk 0:02:13]}  bxc6 {[%clk 0:02:47]} 15. Qc1 {[%clk 0:02:13]}  O-O {[%clk 0:02:38]} 16. O-O {[%clk 0:02:13]}  Rfe8 {[%clk 0:02:36]} 17. h3 {[%clk 0:02:03]}  Bf5 {[%clk 0:02:35]} 18. Nf3 {[%clk 0:02:03]}  c5 {[%clk 0:02:34]} 19. Rd1 {[%clk 0:01:55]}  Rad8 {[%clk 0:01:57]} 20. Qd2 {[%clk 0:01:51]}  Qxc2 {[%clk 0:01:39]} 21. Qxc2 {[%clk 0:01:51]}  Bxc2 {[%clk 0:01:40]} 22. Rdc1 {[%clk 0:01:51]}  Be4 {[%clk 0:01:41]} 23. Rxc5 {[%clk 0:01:51]}  Bxf3 {[%clk 0:01:41]} 24. gxf3 {[%clk 0:01:51]}  d4 {[%clk 0:01:42]} 25. e4 {[%clk 0:01:23]}  Re5 {[%clk 0:01:42]} 26. Rc4 {[%clk 0:01:20]}  f5 {[%clk 0:01:41]} 27. Rd1 {[%clk 0:01:09]}  fxe4 {[%clk 0:01:40]} 28. Rdxd4 {[%clk 0:01:07]}  Rxd4 {[%clk 0:01:40]} 29. Rxd4 {[%clk 0:01:08]}  exf3 {[%clk 0:01:41]} 30. Rf4 {[%clk 0:01:03]}  Re1+ {[%clk 0:01:35]} 31. Kh2 {[%clk 0:01:01]}  Re2 {[%clk 0:01:36]} 32. Kg3 {[%clk 0:00:50]}  Rxa2 {[%clk 0:01:36]} 33. Kxf3 {[%clk 0:00:48]}  a5 {[%clk 0:01:36]} 34. Kg2 {[%clk 0:00:44]}  Ra3 {[%clk 0:01:34]} 35. Rf3 {[%clk 0:00:43]}  Kg7 {[%clk 0:01:33]} 36. Re3 {[%clk 0:00:39]}  Kf6 {[%clk 0:01:32]} 37. Kf3 {[%clk 0:00:39]}  Kg5 {[%clk 0:01:29]} 38. Re5+ {[%clk 0:00:35]}  Kh4 {[%clk 0:01:25]} 39. Kg2 {[%clk 0:00:29]}  f5 {[%clk 0:01:07]} 40. Re3 {[%clk 0:00:25]}  g5 {[%clk 0:00:53]} 41. Rf3 {[%clk 0:00:15]}  f4 {[%clk 0:00:52]} 42. Rd3 {[%clk 0:00:14]}  h5 {[%clk 0:00:51]} 43. Rf3 {[%clk 0:00:11]}  Ra2 {[%clk 0:00:44]} 44. Rc3 {[%clk 0:00:11]}  g4 {[%clk 0:00:44]} 45. hxg4 {[%clk 0:00:09]}  hxg4 {[%clk 0:00:45]} 46. Rc8 {[%clk 0:00:09]}  g3 {[%clk 0:00:45]} 47. Rh8+ {[%clk 0:00:08]}  Kg4 {[%clk 0:00:40]} 48. Rg8+ {[%clk 0:00:08]}  Kf5 {[%clk 0:00:40]} 49. Rf8+ {[%clk 0:00:08]}  Ke4 {[%clk 0:00:41]} 50. Re8+ {[%clk 0:00:08]}  Kd3 {[%clk 0:00:41]} 51. Rd8+ {[%clk 0:00:07]}  Kc3 {[%clk 0:00:41]} 0-1


[Site "https://www.chess.com"]

[Event "Titled Tuesday Blitz February 15 Late 2022"]
[White "Grischuk, Alexander"]
[Black "Deac, Bogdan-Daniel"]
[WhiteFideId "4126025"]
[BlackFideId "1226380"]
[WhiteElo "2762"]
[BlackElo "2646"]
[Result "1-0"]
[Round "05"]
[TimeControl "180+1"]
[Date "2022.02.15"]
[WhiteClock "0:00:02"]
[BlackClock "0:00:02"]

1. e4 {[%clk 0:03:00]}  e5 {[%clk 0:03:00]} 2. Nf3 {[%clk 0:03:00]}  Nc6 {[%clk 0:02:59]} 3. Bc4 {[%clk 0:03:00]}  Nf6 {[%clk 0:02:59]} 4. d3 {[%clk 0:03:01]}  Bc5 {[%clk 0:02:59]} 5. O-O {[%clk 0:02:59]}  d6 {[%clk 0:02:59]} 6. c3 {[%clk 0:02:57]}  O-O {[%clk 0:02:59]} 7. Re1 {[%clk 0:02:57]}  a5 {[%clk 0:02:59]} 8. a4 {[%clk 0:02:56]}  h6 {[%clk 0:02:54]} 9. h3 {[%clk 0:02:52]}  Bb6 {[%clk 0:02:50]} 10. Nbd2 {[%clk 0:02:50]}  Ne7 {[%clk 0:02:50]} 11. Nf1 {[%clk 0:02:45]}  Ng6 {[%clk 0:02:49]} 12. Ng3 {[%clk 0:02:42]}  c6 {[%clk 0:02:49]} 13. Bb3 {[%clk 0:02:41]}  Re8 {[%clk 0:02:43]} 14. d4 {[%clk 0:02:39]}  Bc7 {[%clk 0:02:17]} 15. Bc2 {[%clk 0:02:32]}  d5 {[%clk 0:01:27]} 16. exd5 {[%clk 0:02:13]}  Qxd5 {[%clk 0:01:22]} 17. Bxg6 {[%clk 0:01:26]}  fxg6 {[%clk 0:01:21]} 18. dxe5 {[%clk 0:01:24]}  Qxd1 {[%clk 0:01:18]} 19. Rxd1 {[%clk 0:01:25]}  Bxe5 {[%clk 0:01:03]} 20. Nxe5 {[%clk 0:01:25]}  Rxe5 {[%clk 0:01:04]} 21. Be3 {[%clk 0:01:25]}  Be6 {[%clk 0:00:47]} 22. Bd4 {[%clk 0:01:21]}  Rd5 {[%clk 0:00:47]} 23. Bxf6 {[%clk 0:01:10]}  gxf6 {[%clk 0:00:46]} 24. Ne4 {[%clk 0:01:10]}  Kg7 {[%clk 0:00:44]} 25. Rxd5 {[%clk 0:00:26]}  Bxd5 {[%clk 0:00:44]} 26. Nc5 {[%clk 0:00:27]}  Rb8 {[%clk 0:00:31]} 27. b4 {[%clk 0:00:15]}  b6 {[%clk 0:00:27]} 28. Nd3 {[%clk 0:00:15]}  f5 {[%clk 0:00:20]} 29. f3 {[%clk 0:00:11]}  Kf6 {[%clk 0:00:19]} 30. Rb1 {[%clk 0:00:09]}  Re8 {[%clk 0:00:15]} 31. bxa5 {[%clk 0:00:08]}  bxa5 {[%clk 0:00:16]} 32. Nc5 {[%clk 0:00:06]}  Re3 {[%clk 0:00:16]} 33. Rc1 {[%clk 0:00:06]}  Bc4 {[%clk 0:00:08]} 34. Nb7 {[%clk 0:00:05]}  Bb3 {[%clk 0:00:08]} 35. Nxa5 {[%clk 0:00:04]}  Bxa4 {[%clk 0:00:08]} 36. Ra1 {[%clk 0:00:04]}  Bc2 {[%clk 0:00:03]} 37. c4 {[%clk 0:00:03]}  Re6 {[%clk 0:00:03]} 38. Rc1 {[%clk 0:00:03]}  Bd3 {[%clk 0:00:02]} 39. Rc3 {[%clk 0:00:02]}  Be2 {[%clk 0:00:01]} 40. Kf2 {[%clk 0:00:02]}  c5 {[%clk 0:00:01]} 41. Nb3 {[%clk 0:00:02]}  Re5 {[%clk 0:00:02]} 42. Nxc5 {[%clk 0:00:02]} 1-0


[Site "https://www.chess.com"]

[Event "Titled Tuesday Blitz February 15 Late 2022"]
[White "Gurevich, Dmitry"]
[Black "Xie, Bryan"]
[WhiteFideId "2000407"]
[BlackFideId "30941296"]
[WhiteElo "2506"]
[BlackElo "1899"]
[Result "1-0"]
[Round "05"]
[TimeControl "180+1"]
[Date "2022.02.16"]
[WhiteClock "0:00:20"]
[BlackClock "0:00:01"]

1. d4 {[%clk 0:03:00]}  Nf6 {[%clk 0:02:57]} 2. c4 {[%clk 0:03:00]}  e6 {[%clk 0:02:57]} 3. g3 {[%clk 0:02:59]}  d5 {[%clk 0:02:54]} 4. Bg2 {[%clk 0:02:58]}  Be7 {[%clk 0:02:53]} 5. Nf3 {[%clk 0:02:58]}  O-O {[%clk 0:02:53]} 6. Nc3 {[%clk 0:02:58]}  dxc4 {[%clk 0:02:53]} 7. Ne5 {[%clk 0:02:58]}  Nc6 {[%clk 0:02:54]} 8. Bxc6 {[%clk 0:02:57]}  bxc6 {[%clk 0:02:55]} 9. Nxc6 {[%clk 0:02:57]}  Qe8 {[%clk 0:02:56]} 10. Nxe7+ {[%clk 0:02:54]}  Qxe7 {[%clk 0:02:57]} 11. Qa4 {[%clk 0:02:54]}  c5 {[%clk 0:02:18]} 12. Qxc4 {[%clk 0:02:53]}  cxd4 {[%clk 0:02:16]} 13. Qxd4 {[%clk 0:02:53]}  Rd8 {[%clk 0:02:15]} 14. Qh4 {[%clk 0:02:52]}  Bb7 {[%clk 0:02:03]} 15. O-O {[%clk 0:02:50]}  Rac8 {[%clk 0:02:02]} 16. Bg5 {[%clk 0:02:48]}  Ba6 {[%clk 0:01:40]} 17. Bxf6 {[%clk 0:02:40]}  Qxf6 {[%clk 0:01:41]} 18. Qxf6 {[%clk 0:02:39]}  gxf6 {[%clk 0:01:42]} 19. Rfd1 {[%clk 0:02:36]}  Rb8 {[%clk 0:01:22]} 20. b3 {[%clk 0:02:22]}  Rbc8 {[%clk 0:01:01]} 21. Rxd8+ {[%clk 0:02:16]}  Rxd8 {[%clk 0:01:02]} 22. Rc1 {[%clk 0:01:53]}  Rd2 {[%clk 0:00:59]} 23. Kf1 {[%clk 0:01:52]}  f5 {[%clk 0:00:40]} 24. Ke1 {[%clk 0:01:51]}  Rd6 {[%clk 0:00:30]} 25. Na4 {[%clk 0:01:46]}  Bb5 {[%clk 0:00:26]} 26. Rc8+ {[%clk 0:01:40]}  Kg7 {[%clk 0:00:24]} 27. Nc3 {[%clk 0:01:40]}  Bc6 {[%clk 0:00:12]} 28. f3 {[%clk 0:01:30]}  h5 {[%clk 0:00:07]} 29. b4 {[%clk 0:01:27]}  a6 {[%clk 0:00:07]} 30. a4 {[%clk 0:01:23]}  Kf6 {[%clk 0:00:06]} 31. Rc7 {[%clk 0:01:16]}  Bd7 {[%clk 0:00:04]} 32. Rc5 {[%clk 0:01:08]}  Ke7 {[%clk 0:00:03]} 33. Rc7 {[%clk 0:00:59]}  Rd4 {[%clk 0:00:04]} 34. b5 {[%clk 0:00:54]}  axb5 {[%clk 0:00:03]} 35. axb5 {[%clk 0:00:51]}  Rb4 {[%clk 0:00:04]} 36. Rb7 {[%clk 0:00:45]}  Kd8 {[%clk 0:00:04]} 37. Ra7 {[%clk 0:00:28]}  Kc8 {[%clk 0:00:02]} 38. Kd2 {[%clk 0:00:26]}  Bxb5 {[%clk 0:00:01]} 39. Nxb5 {[%clk 0:00:23]}  Rxb5 {[%clk 0:00:02]} 40. Rxf7 {[%clk 0:00:23]}  Kd8 {[%clk 0:00:02]} 41. Rh7 {[%clk 0:00:22]}  Rb2+ {[%clk 0:00:02]} 42. Ke3 {[%clk 0:00:21]}  e5 {[%clk 0:00:01]} 43. Rxh5 {[%clk 0:00:20]} 1-0


[Site "https://www.chess.com"]